Workbook

Sheet паспорт
A1: ПАТ "УКРТРАНСГАЗ" | G1: ПАСПОРТ ФІЗИКО-ХІМІЧНИХ ПОКАЗНИКІВ ПРИРОДНОГО ГАЗУ № 600
A2: Філія "УМГ "ХАРКІВТРАНСГАЗ" | G2: переданого Первомайським п/м Первомайського ЛВУМГ філії "УМГ "Харківтрансгаз" та прийнятого ПАТ "Харківгаз"
A3: Первомайський п/м Первомайське ЛВУМГ | G3: Маршрут № 600
A4: Вимірювальна хіміко-аналітична лабораторія
A5: Свідоцтво №100-356/2015 чинне до 20.12.2018 р. | K5: по газопроводу "СОЮЗ" | V5: за період з | X5: 2017-04-01 | Z5: по | AA5: 2017-04-30
A7: Число місяця | B7: Компонентний склад, % мол. | N7: Фізико-хімічні показники газу обчислені на основі компонентного складу, 101,325 кПа | X7: Температура точки роси за вологою (Р = 3.92 МПа), °С | Y7: Температура точки роси за вуглеводнями, °С | Z7: Вміст сірководню, г/м3 | AA7: Вміст меркаптанової сірки, г/м3 | AB7: Вміст механічних домішок, г/м3
N8: Густина абсолютна, кг/м3,при 20 ºС, | O8: Температура вимірювання/згоряння при 20/25°С
B9: метан, С₁ | C9: етан, С₂ | D9: пропан, С₃ | E9: ізо-бутан, і-С₄ | F9: н-бутан, н-С₄ | G9: нео-пентан, нео-С₅ | H9: ізо-пентан, і-С₅ | I9: н-пентан, н-С₅ | J9: гексани та вищі, С₆₊ | K9: кисень, О₂ | L9: азот, N₂ | M9: діоксид вуглецю, CО₂ | O9: Теплота згоряння нижча | R9: Теплота згоряння вища | U9: Число Воббе вище
O10: ккал/м³ | P10: МДж/м³ | Q10: кВт⋅год/м³ | R10: ккал/м³ | S10: МДж/м³ | T10: кВт⋅год/м³ | U10: ккал/м³ | V10: МДж/м³ | W10: кВт⋅год/м³
A11: 1 | O11: =P11*238.8459 -> 8178.131385 | P11: 34.2402 | Q11: =P11/3.6 -> 9.511166667 | R11: =S11*238.8459 -> 9068.978823 | S11: 37.97 | T11: =S11/3.6 -> 10.54722222 | AC11: =SUM(B11:M11)+$K$42+$N$42 -> 0
A12: 2 | O12: =P12*238.8459 -> 8178.131385 | P12: 34.2402 | Q12: 9.511166667 | R12: =S12*238.8459 -> 9068.978823 | S12: 37.97 | T12: 10.54722222 | AC12: =SUM(B12:M12)+$K$42+$N$42 -> 0
A13: 3 | B13: 96.1617 | C13: 2.1013 | D13: 0.6525 | E13: 0.1021 | F13: 0.0978 | G13: 0.0013 | H13: 0.0183 | I13: 0.0127 | J13: 0.0108 | K13: 0.0125 | L13: 0.6829 | M13: 0.1461 | N13: 0.698 | O13: 8178.250808 | P13: 34.2407 | Q13: 9.511305556 | R13: 9069.217669 | S13: 37.971 | T13: 10.5475 | U13: =V13*238.8459 -> 11913.70515 | V13: 49.8803 | W13: =V13/3.6 -> 13.85563889 | X13: -18.9 | Y13: -18.5 | AC13: 100 | AD13: =IF(AC13=100,"ОК"," ") -> ОК
A14: 4 | B14: 96.1384 | C14: 2.109 | D14: 0.6583 | E14: 0.1035 | F14: 0.0999 | G14: 0.0014 | H14: 0.0188 | I14: 0.013 | J14: 0.011 | K14: 0.0115 | L14: 0.6885 | M14: 0.1467 | N14: 0.6982 | O14: 8179.922729 | P14: 34.2477 | Q14: 9.51325 | R14: 9071.009013 | S14: 37.9785 | T14: 10.54958333 | U14: 11914.11118 | V14: 49.882 | W14: =V14/3.6 -> 13.85611111 | X14: -17.3 | Y14: -17 | AC14: 100 | AD14: =IF(AC14=100,"ОК"," ") -> ОК
A15: 5 | B15: 96.0667 | C15: 2.1484 | D15: 0.6697 | E15: 0.1055 | F15: 0.1013 | G15: 0.0014 | H15: 0.0189 | I15: 0.0129 | J15: 0.0106 | K15: 0.0136 | L15: 0.7017 | M15: 0.1493 | N15: 0.6987 | O15: 8182.884419 | P15: 34.2601 | Q15: 9.516694444 | R15: 9074.11401 | S15: 37.9915 | T15: 10.55319444 | U15: 11913.72903 | V15: 49.8804 | W15: 13.85566667 | X15: -20.2 | Y15: -20.1 | AC15: 100 | AD15: ОК
A16: 6 | B16: 96.0697 | C16: 2.1704 | D16: 0.6826 | E16: 0.1072 | F16: 0.1033 | G16: 0.0014 | H16: 0.019 | I16: 0.0135 | J16: 0.0113 | K16: 0.0109 | L16: 0.6617 | M16: 0.149 | N16: 0.6989 | O16: 8190.38418 | P16: 34.2915 | Q16: 9.525416667 | R16: 9082.28254 | S16: 38.0257 | T16: 10.56269444 | U16: 11923.06791 | V16: 49.9195 | W16: =V16/3.6 -> 13.86652778 | X16: -17.7 | Y16: -17.3 | AC16: 100 | AD16: ОК
A17: 7 | B17: 96.1077 | C17: 2.151 | D17: 0.674 | E17: 0.1057 | F17: 0.101 | G17: 0.0013 | H17: 0.0184 | I17: 0.0129 | J17: 0.0106 | K17: 0.011 | L17: 0.6585 | M17: 0.1478 | N17: 0.6985 | O17: 8187.207529 | P17: 34.2782 | Q17: 9.521722222 | R17: 9078.890928 | S17: 38.0115 | T17: 10.55875 | U17: 11921.6826 | V17: 49.9137 | W17: 13.86491667 | X17: -14.8 | Y17: -14.5 | AC17: 99.9999
A18: 8 | O18: =P18*238.8459 -> 8187.207529 | P18: 34.2782 | Q18: =P18/3.6 -> 9.521722222 | R18: =S18*238.8459 -> 9078.890928 | S18: 38.0115 | T18: =S18/3.6 -> 10.55875 | AC18: 0
A19: 9 | O19: 8187.207529 | P19: 34.2782 | Q19: 9.521722222 | R19: 9078.890928 | S19: 38.0115 | T19: 10.55875 | AC19: 0
A20: 10 | B20: 96.0435 | C20: 2.1807 | D20: 0.6866 | E20: 0.1081 | F20: 0.1049 | G20: 0.0014 | H20: 0.0197 | I20: 0.0139 | J20: 0.0119 | K20: 0.0126 | L20: 0.6668 | M20: 0.1499 | N20: 0.6991 | O20: 8191.84114 | P20: 34.2976 | Q20: 9.527111111 | R20: 9083.835038 | S20: 38.0322 | T20: 10.5645 | U20: 11923.02014 | V20: 49.9193 | W20: 13.86647222 | X20: -19.9 | Y20: -19.2 | AC20: 100 | AD20: ОК
A21: 11 | B21: 96.0532 | C21: 2.1935 | D21: 0.6751 | E21: 0.1049 | F21: 0.1003 | G21: 0.0013 | H21: 0.0187 | I21: 0.0132 | J21: 0.0121 | K21: 0.0116 | L21: 0.6595 | M21: 0.1568 | N21: 0.6989 | O21: 8189.476565 | P21: 34.2877 | Q21: 9.524361111 | R21: 9081.279387 | S21: 38.0215 | T21: 10.56152778 | U21: 11921.3721 | V21: 49.9124 | W21: 13.86455556 | X21: -21 | Y21: -19.7 | AC21: 100.0002
A22: 12 | B22: 96.0639 | C22: 2.1823 | D22: 0.6648 | E22: 0.1024 | F22: 0.0974 | G22: 0.0013 | H22: 0.0181 | I22: 0.0125 | J22: 0.0112 | K22: 0.0125 | L22: 0.6732 | M22: 0.1604 | N22: 0.6987 | O22: 8184.484686 | P22: 34.2668 | Q22: 9.518555556 | R22: 9075.88147 | S22: 37.9989 | T22: 10.55525 | U22: 11916.14137 | V22: 49.8905 | W22: 13.85847222 | X22: -24.3 | Y22: -23.4 | AB22: не виявлено | AC22: 100 | AD22: ОК
A23: 13 | B23: 96.0711 | C23: 2.1649 | D23: 0.6631 | E23: 0.102 | F23: 0.0976 | G23: 0.0013 | H23: 0.0181 | I23: 0.0127 | J23: 0.011 | K23: 0.0124 | L23: 0.6849 | M23: 0.161 | N23: 0.6986 | O23: 8182.120112 | P23: 34.2569 | Q23: 9.515805556 | R23: 9073.325818 | S23: 37.9882 | T23: 10.55227778 | U23: 11913.34688 | V23: 49.8788 | W23: 13.85522222 | X23: -23.4 | Y23: -22.3 | Z23: не виявлено | AA23: 0.00037 | AC23: 100.0001
A24: 14 | B24: 96.2126 | C24: 2.0793 | D24: 0.6449 | E24: 0.0997 | F24: 0.0962 | G24: 0.0013 | H24: 0.0182 | I24: 0.0126 | J24: 0.0109 | K24: 0.0119 | L24: 0.6676 | M24: 0.1448 | N24: 0.6976 | O24: 8176.531118 | P24: 34.2335 | Q24: 9.509305556 | R24: 9067.426325 | S24: 37.9635 | T24: 10.54541667 | U24: 11914.66053 | V24: 49.8843 | W24: 13.85675 | X24: -23.1 | Y24: -21.8 | AC24: 100 | AD24: ОК
A25: 15 | O25: 8176.531118 | P25: 34.2335 | Q25: 9.509305556 | R25: 9067.426325 | S25: 37.9635 | T25: 10.54541667 | AC25: 0
A26: 16 | O26: 8176.531118 | P26: 34.2335 | Q26: 9.509305556 | R26: 9067.426325 | S26: 37.9635 | T26: 10.54541667 | AC26: 0
A27: 17 | O27: 8176.531118 | P27: 34.2335 | Q27: 9.509305556 | R27: 9067.426325 | S27: 37.9635 | T27: 10.54541667 | AC27: 0
A28: 18 | B28: 96.1754 | C28: 2.0635 | D28: 0.6357 | E28: 0.0985 | F28: 0.0944 | G28: 0.0013 | H28: 0.0181 | I28: 0.0124 | J28: 0.0104 | K28: 0.0141 | L28: 0.7264 | M28: 0.1499 | N28: 0.6977 | O28: 8168.338703 | P28: 34.1992 | Q28: 9.499777778 | R28: 9058.445719 | S28: 37.9259 | T28: 10.53497222 | U28: 11902.07335 | V28: 49.8316 | W28: 13.84211111 | X28: -22.9 | Y28: -21.9 | AC28: 100.0001
A29: 19 | B29: 96.1873 | C29: 2.0418 | D29: 0.6335 | E29: 0.0987 | F29: 0.096 | G29: 0.0013 | H29: 0.0187 | I29: 0.013 | J29: 0.0106 | K29: 0.0146 | L29: 0.7376 | M29: 0.1465 | N29: 0.6976 | O29: 8166.714551 | P29: 34.1924 | Q29: 9.497888889 | R29: 9056.678259 | S29: 37.9185 | T29: 10.53291667 | U29: 11900.30589 | V29: 49.8242 | W29: 13.84005556 | X29: -21.9 | Y29: -21.2 | AC29: 99.9996
A30: 20 | B30: 96.0977 | C30: 2.083 | D30: 0.639 | E30: 0.099 | F30: 0.0968 | G30: 0.0013 | H30: 0.0191 | I30: 0.0136 | J30: 0.0117 | K30: 0.0157 | L30: 0.7692 | M30: 0.1539 | N30: 0.6982 | O30: 8167.550512 | P30: 34.1959 | Q30: 9.498861111 | R30: 9057.466451 | S30: 37.9218 | T30: 10.53383333 | U30: 11895.98278 | V30: 49.8061 | W30: 13.83502778 | X30: -21.5 | Y30: -20.4 | AC30: 100 | AD30: =IF(AC30=100,"ОК"," ") -> ОК
A31: 21 | B31: 96.16 | C31: 2.0528 | D31: 0.6256 | E31: 0.0967 | F31: 0.0939 | G31: 0.0013 | H31: 0.0183 | I31: 0.0126 | J31: 0.0109 | K31: 0.0158 | L31: 0.762 | M31: 0.1501 | N31: 0.6977 | O31: 8163.203516 | P31: 34.1777 | Q31: 9.493805556 | R31: 9052.83284 | S31: 37.9024 | T31: 10.52844444 | U31: 11894.78855 | V31: 49.8011 | W31: =V31/3.6 -> 13.83363889 | X31: -24.2 | Y31: -21.2 | AC31: 100 | AD31: ОК
A32: 22 | O32: 8163.203516 | P32: 34.1777 | Q32: =P32/3.6 -> 9.493805556 | R32: =S32*238.8459 -> 9052.83284 | S32: 37.9024 | T32: 10.52844444 | AC32: 0
A33: 23 | O33: 8163.203516 | P33: 34.1777 | Q33: 9.493805556 | R33: 9052.83284 | S33: 37.9024 | T33: 10.52844444 | AC33: 0 | AD33: =IF(AC33=100,"ОК"," ") -> 
A34: 24 | B34: 96.2712 | C34: 2.0136 | D34: 0.6066 | E34: 0.0943 | F34: 0.0909 | G34: 0.0012 | H34: 0.0177 | I34: 0.0126 | J34: 0.0111 | K34: 0.0138 | L34: 0.7229 | M34: 0.1441 | N34: 0.6968 | O34: 8161.053903 | P34: 34.1687 | Q34: 9.491305556 | R34: 9050.683227 | S34: 37.8934 | T34: 10.52594444 | U34: 11899.08778 | V34: 49.8191 | W34: 13.83863889 | X34: -22.7 | Y34: -21.1 | AC34: 100 | AD34: ОК
A35: 25 | B35: 96.189 | C35: 2.0556 | D35: 0.6174 | E35: 0.0964 | F35: 0.0936 | G35: 0.0012 | H35: 0.0182 | I35: 0.0131 | J35: 0.011 | K35: 0.014 | L35: 0.7433 | M35: 0.1471 | N35: 0.6974 | O35: =P35*238.8459 -> 8164.254438 | P35: 34.1821 | Q35: =P35/3.6 -> 9.495027778 | R35: =S35*238.8459 -> 9054.02707 | S35: 37.9074 | T35: =S35/3.6 -> 10.52983333 | U35: 11898.20405 | V35: 49.8154 | W35: 13.83761111 | X35: -22.8 | Y35: -21.4 | AB35: не виявлено | AC35: 99.9999
A36: 26 | B36: 96.1387 | C36: 2.0803 | D36: 0.6294 | E36: 0.0992 | F36: 0.0963 | G36: 0.0012 | H36: 0.0189 | I36: 0.0135 | J36: 0.0112 | K36: 0.0142 | L36: 0.7472 | M36: 0.1498 | N36: 0.6979 | O36: 8168.099857 | P36: 34.1982 | Q36: 9.4995 | R36: 9058.135219 | S36: 37.9246 | T36: 10.53461111 | U36: 11899.61324 | V36: 49.8213 | W36: 13.83925 | X36: -21.9 | Y36: -20.4 | Z36: не виявлено | AA36: 0 | AC36: 99.9999
A37: 27 | B37: 96.058 | C37: 2.0886 | D37: 0.6508 | E37: 0.1021 | F37: 0.0987 | G37: 0.0077 | H37: 0.0493 | I37: 0.0189 | J37: 0.0046 | K37: 0.0123 | L37: 0.7898 | M37: 0.1192 | N37: 0.6989 | O37: 8179.30173 | P37: 34.2451 | Q37: 9.512527778 | R37: 9065.993249 | S37: 37.9575 | T37: 10.54375 | U37: 11901.14185 | V37: 49.8277 | W37: =V37/3.6 -> 13.84102778 | X37: -22.3 | AC37: 100 | AD37: ОК
A38: 28 | B38: 96.1074 | C38: 2.1069 | D38: 0.6523 | E38: 0.1011 | F38: 0.0981 | G38: 0.0013 | H38: 0.0191 | I38: 0.0139 | J38: 0.0113 | K38: 0.0136 | L38: 0.7215 | M38: 0.1534 | N38: 0.6983 | O38: 8175.336888 | P38: 34.2285 | Q38: 9.507916667 | R38: 9065.94548 | S38: 37.9573 | T38: 10.54369444 | U38: 11906.27704 | V38: 49.8492 | W38: =V38/3.6 -> 13.847 | X38: -22.8 | Y38: -20.8 | AC38: 99.9999
A39: 29 | O39: 8175.336888 | P39: =P38 -> 34.2285 | Q39: 9.507916667 | R39: 9065.94548 | S39: =S38 -> 37.9573 | T39: 10.54369444 | U39: 11906.27704 | V39: =V38 -> 49.8492 | W39: =V39/3.6 -> 13.847 | AC39: 0
A40: 30 | O40: 8175.336888 | P40: =P38 -> 34.2285 | Q40: 9.507916667 | R40: 9065.94548 | S40: =S38 -> 37.9573 | T40: 10.54369444 | U40: 11906.27704 | V40: =V38 -> 49.8492 | W40: 13.847 | AC40: 0
A41: 31 | AC41: 0
A42: Рівень одоризації відповідає чинним нормативним документам | O42: 8174.873996 | P42: 34.22656196 | Q42: 9.507378323 | R42: 9065.425336 | S42: 37.95512226 | T42: 10.54308952
H43: Середньозважене значення теплоти згоряння:
B46: Головний інженер Первомайського ЛВУМГ | O46: Журавель І.В. | V46: 03.05.2017 р.
D47: Керівник підрозділу підприємства, якому підпорядкована лабораторія | O47: прізвище | R47: підпис | V47: дата
B48: Начальник лабораторії ВХАЛ Первомайського п/м | O48: Сипко Е.П. | V48: =V46 -> 03.05.2017 р.
D49: Лабораторія, де здійснювались аналізи газу | O49: прізвище | R49: підпис | V49: дата
B50: Інженер І кат. групи газовимірювань та метрології | O50: Юрченко В.М. | V50: =V46 -> 03.05.2017 р.
D51: Метрологічна служба, яка визначає обсяги газу | O51: прізвище | R51: підпис | V51: дата

Sheet додаток
A2: Додаток до Паспорту фізико-хімічних показників природного газу №600
A4: Область | B4: ГРС, прямий споживач | C4: Cередньозважене значення вищої теплоти згоряння
C5: МДж/м³ | D5: ккал/м³ | E5: кВт*год./м³
A6: Харківська область | B6: ГРС с.Олексіївка | C6: 37.95629765 | D6: 9065.706074 | E6: 10.54341601
B7: ГРС с.Руновщина | C7: 37.95087265 | D7: 9064.410333 | E7: 10.54190907
B8: ГРС смт.Борова | C8: 37.95691755 | D8: 9065.854134 | E8: 10.54358821
B9: ГРС смт.Зачепилівка | C9: 37.95432504 | D9: 9065.234924 | E9: 10.54286807
B10: ГРС с.Сомівка | C10: 37.9541346 | D10: 9065.189438 | E10: 10.54281517
A11: Середньозважене значення вищої теплоти згоряння по маршруту № 600 | C11: 37.95512226 | D11: 9065.425336 | E11: 10.54308952
A14: Головний інженер Первомайського ЛВУМГ | C14: Журавель І.В. | E14: 03.05.2017 р.
A15: Керівник підрозділу підприємства, якому підпорядкована лабораторія | C15: прізвище | D15: підпис | E15: дата
A16: Начальник лабораторії ВХАЛ Первомайського п/м | C16: Сипко Е.П. | E16: =E14 -> 03.05.2017 р.
A17: Лабораторія, де здійснювались аналізи газу | C17: прізвище | D17: підпис | E17: дата
A18: Інженер І кат. групи газовимірювань та метрології | C18: Юрченко В.М. | E18: =E14 -> 03.05.2017 р.
A19: Метрологічна служба, яка визначає обсяги газу | C19: прізвище | D19: підпис | E19: дата

Sheet variablesList (hidden)
A1: 3 | B1: x:\gaysin | C1: 10, 11, 24, 25, 127, 128, 132, 180, 207, 215 | D1: x:\
B2: x:\Illinci
B3: x:\Talne
